[Event "FIDE WCCC Girls-10 2024"]
[Site "Montesilvano"]
[Date "2024.11.18"]
[Round "2.15"]
[White "Isakhanyan, Nare"]
[Black "Wang, Yi Xuan"]
[Result "0-1"]
[ECO "D35"]
[WhiteElo "1540"]
[BlackElo "1668"]
[PlyCount "58"]
[EventDate "2024.11.18"]
[EventType "swiss"]
[EventCountry "ITA"]
[TimeControl "5400+30"]

1. d4 {[%emt 0:00:01]} d5 {[%emt 0:00:45]} 2. c4 {[%emt 0:00:05]} e6 {[%emt 0:00:13]} 3. Nc3 {[%emt 0:00:05]} Nf6 {[%emt 0:00:07]} 4. Bg5 {[%emt 0:00:06]} Be7 {[%emt 0:00:27]} 5. Nf3 {[%emt 0:00:05]} Nbd7 {[%emt 0:02:17]} 6. e3 {[%emt 0:00:35]} O-O {[%emt 0:01:26]} 7. cxd5 {[%emt 0:02:19]} exd5 {[%emt 0:00:54]} 8. Bd3 {[%emt 0:00:19]} c6 {[%emt 0:01:08]} 9. O-O {[%emt 0:00:06]} h6 {[%emt 0:02:20]} 10. Bh4 {[%emt 0:00:11]} Ne8 {[%emt 0:04:32]} 11. Bxe7 {[%emt 0:00:06]} Qxe7 {[%emt 0:00:14]} 12. Rb1 {[%emt 0:00:39]} a5 {[%emt 0:01:20]} 13. Qc2 {[%emt 0:04:41]} Nd6 {[%emt 0:03:17]} 14. b3 {[%emt 0:07:09]} f5 {[%emt 0:06:43]} 15. Rbc1 {[%emt 0:09:53]} Ne4 {[%emt 0:09:48]} 16. Bxe4 {[%emt 0:12:55]} fxe4 {[%emt 0:01:19]} 17. Nd2 {[%emt 0:00:05]} Qg5 {[%emt 0:04:52]} 18. Ne2 {[%emt 0:11:33]} Nf6 {[%emt 0:02:01]} 19. Nf4 {[%emt 0:00:32]} h5 {[%emt 0:09:59]} 20. f3 {[%emt 0:06:43]} Bf5 {[%emt 0:03:11]} 21. fxe4 {[%emt 0:01:51]} Bxe4 {[%emt 0:04:21]} 22. Nxe4 {[%emt 0:00:13]} Nxe4 {[%emt 0:00:18]} 23. Qe2 {[%emt 0:07:17]} h4 {[%emt 0:07:17]} 24. Qh5 {[%emt 0:07:25]} Rxf4 {[%emt 0:00:54]} 25. Qxg5 {[%emt 0:01:04]} Rxf1+ {[%emt 0:00:08]} 26. Rxf1 {[%emt 0:00:07]} Nxg5 {[%emt 0:00:06]} 27. Rf4 {[%emt 0:01:15]} Re8 {[%emt 0:00:52]} 28. Rxh4 {[%emt 0:00:35]} Rxe3 {[%emt 0:00:09]} 29. Kf2 {[%emt 0:00:11]} Rc3 {[%emt 0:00:40]} 0-1

[Event "FIDE WCCC Girls-10 2024"]
[Site "Montesilvano"]
[Date "2024.11.18"]
[Round "2.16"]
[White "Cetin, Beren"]
[Black "Poliak, Margarita"]
[Result "1-0"]
[ECO "B23"]
[WhiteElo "1658"]
[BlackElo "1514"]
[PlyCount "87"]
[EventDate "2024.11.18"]
[EventType "swiss"]
[EventCountry "ITA"]
[TimeControl "5400+30"]

1. e4 {[%emt 0:00:01]} c5 {[%emt 0:00:01]} 2. Nc3 {[%emt 0:00:07]} d6 {[%emt 0:00:07]} 3. d4 {[%emt 0:00:05]} cxd4 {[%emt 0:00:04]} 4. Qxd4 {[%emt 0:00:08]} Nc6 {[%emt 0:00:05]} 5. Qd2 {[%emt 0:00:04]} g6 {[%emt 0:00:06]} 6. b3 {[%emt 0:00:05]} Bh6 {[%emt 0:00:05]} 7. f4 {[%emt 0:00:05]} Nf6 {[%emt 0:00:08]} 8. Bb2 {[%emt 0:00:05]} O-O {[%emt 0:00:05]} 9. O-O-O {[%emt 0:00:06]} e5 {[%emt 0:00:08]} 10. Qxd6 {[%emt 0:01:48]} Bxf4+ {[%emt 0:05:01]} 11. Kb1 {[%emt 0:00:07]} Qxd6 {[%emt 0:07:46]} 12. Rxd6 {[%emt 0:00:09]} Ng4 {[%emt 0:01:35]} 13. g3 {[%emt 0:18:04]} Nf2 {[%emt 0:05:35]} 14. gxf4 {[%emt 0:00:13]} Nxh1 {[%emt 0:00:05]} 15. Rd2 {[%emt 0:00:26]} Be6 {[%emt 0:06:40]} 16. Bg2 {[%emt 0:00:18]} Rad8 {[%emt 0:01:51]} 17. Nd5 {[%emt 0:00:49]} f5 {[%emt 0:00:45]} 18. Bxh1 {[%emt 0:06:15]} fxe4 {[%emt 0:01:32]} 19. Bxe4 {[%emt 0:04:03]} Rxf4 {[%emt 0:03:11]} 20. Ne2 {[%emt 0:14:36]} Rf1+ {[%emt 0:03:12]} 21. Nc1 {[%emt 0:00:10]} Kg7 {[%emt 0:03:07]} 22. Bc3 {[%emt 0:11:58]} Rf7 {[%emt 0:05:14]} 23. Nd3 {[%emt 0:28:18]} Kf8 {[%emt 0:04:13]} 24. Nc5 {[%emt 0:04:22]} Bc8 {[%emt 0:01:50]} 25. b4 {[%emt 0:03:26]} b6 {[%emt 0:05:48]} 26. b5 {[%emt 0:01:41]} Ne7 {[%emt 0:02:26]} 27. Nb3 {[%emt 0:02:20]} Nxd5 {[%emt 0:07:08]} 28. Bxd5 {[%emt 0:00:13]} Rfd7 {[%emt 0:01:48]} 29. Rf2+ {[%emt 0:00:12]} Kg7 {[%emt 0:00:38]} 30. Bxe5+ {[%emt 0:00:35]} Kh6 {[%emt 0:00:06]} 31. Bc6 {[%emt 0:00:39]} Rd1+ {[%emt 0:00:20]} 32. Kb2 {[%emt 0:00:06]} Bf5 {[%emt 0:35:50]} 33. Bf3 {[%emt 0:02:44]} Re1 {[%emt 0:00:00]} 34. Bc3 {[%emt 0:00:23]} Ree8 {[%emt 0:00:00]} 35. Bc6 {[%emt 0:00:24]} Rg8 {[%emt 0:00:00]} 36. Rf3 {[%emt 0:00:25]} Rgf8 {[%emt 0:00:00]} 37. Nd4 {[%emt 0:01:07]} Bc8 {[%emt 0:00:00]} 38. Re3 {[%emt 0:00:43]} Rf2 {[%emt 0:00:00]} 39. Re7 {[%emt 0:00:30]} Rxh2 {[%emt 0:00:00]} 40. Nf3 {[%emt 0:00:07]} Rf2 {[%emt 0:00:00]} 41. Bd4 {[%emt 0:01:05]} Rf1 {[%emt 0:00:00]} 42. Be3+ {[%emt 0:00:11]} Kh5 {[%emt 0:00:00]} 43. Rxh7+ {[%emt 0:00:05]} Kg4 {[%emt 0:00:00]} 44. Nh2+ 1-0

[Event "FIDE WCCC Girls-10 2024"]
[Site "Montesilvano"]
[Date "2024.11.18"]
[Round "2.17"]
[White "Sobirova, Mumtozbegim"]
[Black "Sholpanbek, Zhansaya"]
[Result "0-1"]
[ECO "C54"]
[WhiteElo "1476"]
[BlackElo "1657"]
[PlyCount "76"]
[EventDate "2024.11.18"]
[EventType "swiss"]
[EventCountry "ITA"]
[TimeControl "5400+30"]

1. e4 {[%emt 0:00:04]} e5 {[%emt 0:00:21]} 2. Nf3 {[%emt 0:00:12]} Nc6 {[%emt 0:00:15]} 3. Bc4 {[%emt 0:00:15]} Bc5 {[%emt 0:00:14]} 4. c3 {[%emt 0:00:15]} Nf6 {[%emt 0:00:31]} 5. d3 {[%emt 0:00:20]} O-O {[%emt 0:00:27]} 6. Bb3 d5 {[%emt 0:01:00]} 7. Qe2 {[%emt 0:01:04]} a5 {[%emt 0:01:08]} 8. Bg5 {[%emt 0:02:16]} d4 {[%emt 1:30:34]} 9. Nbd2 h6 {[%emt 0:00:00]} 10. Bh4 {[%emt 1:31:04]} a4 {[%emt 0:00:00]} 11. Bd1 {[%emt 0:00:00]} a3 {[%emt 0:00:00]} 12. Nb3 {[%emt 0:00:00]} axb2 {[%emt 0:00:00]} 13. Qxb2 {[%emt 0:00:00]} dxc3 {[%emt 0:00:00]} 14. Qe2 {[%emt 0:02:00]} Ba3 {[%emt 0:03:00]} 15. Rb1 Bg4 16. h3 Bxf3 17. gxf3 Nb4 18. Bxf6 Nxd3+ 19. Kf1 gxf6 20. Qe3 Nf4 21. Qxc3 Qe7 22. Nd2 c5 23. Nc4 Bb4 24. Qc2 Rfd8 25. a3 Bxa3 26. Ra1 Qd7 27. Nb6 Qb5+ 28. Qc4 Qxb6 29. Qc2 Qb2 30. Rg1+ Kf8 31. Rb1 Qxc2 32. Bxc2 Rd2 33. Bb3 Bb4 34. Rh1 Ra3 35. Kg1 b5 36. Bd1 Rad3 37. Kh2 Rxf2+ 38. Kg3 Rg2+ {[%emt 0:00:00]} 0-1

[Event "FIDE WCCC Girls-10 2024"]
[Site "Montesilvano"]
[Date "2024.11.18"]
[Round "2.18"]
[White "Trzcinska, Weronika"]
[Black "Abibulla, Inzhu"]
[Result "1/2-1/2"]
[ECO "C41"]
[WhiteElo "1653"]
[BlackElo "1499"]
[PlyCount "269"]
[EventDate "2024.11.18"]
[EventType "swiss"]
[EventCountry "ITA"]
[TimeControl "5400+30"]

1. e4 {[%emt 1:31:00]} d6 {[%emt 0:00:21]} 2. Nf3 {[%emt 0:00:00]} e5 {[%emt 0:00:22]} 3. Bc4 {[%emt 0:00:00]} Bg4 {[%emt 0:00:46]} 4. h3 {[%emt 0:00:00]} Bh5 {[%emt 0:00:32]} 5. Nc3 {[%emt 0:02:00]} Nf6 6. Be2 {[%emt 0:00:00]} Ng8 {[%emt 0:01:00]} 7. Bc4 Nf6 {[%emt 0:00:36]} 8. Be2 {[%emt 0:00:00]} Nc6 {[%emt 0:01:04]} 9. d3 {[%emt 0:00:00]} h6 {[%emt 0:00:56]} 10. Be3 {[%emt 0:00:00]} Be7 {[%emt 0:00:55]} 11. O-O {[%emt 0:00:00]} O-O {[%emt 1:29:28]} 12. Nd2 {[%emt 0:00:00]} Bxe2 {[%emt 0:00:00]} 13. Qxe2 {[%emt 0:04:00]} d5 {[%emt 0:00:00]} 14. exd5 {[%emt 0:00:00]} Nxd5 {[%emt 0:00:00]} 15. Nxd5 {[%emt 0:00:00]} Qxd5 {[%emt 0:00:00]} 16. Nb3 {[%emt 0:00:00]} Qd8 {[%emt 0:00:00]} 17. Nd2 Qd5 {[%emt 0:00:00]} 18. Nb3 {[%emt 0:00:00]} Qd8 {[%emt 0:00:00]} 19. Nd2 Qd5 {[%emt 0:00:00]} 20. Nb3 {[%emt 0:00:00]} Qd8 {[%emt 0:00:00]} 21. Nd2 Qd5 {[%emt 0:00:00]} 22. Nb3 {[%emt 0:00:00]} Qd8 {[%emt 0:00:00]} 23. Nd2 Qd5 {[%emt 0:00:00]} 24. Nb3 {[%emt 0:00:00]} Qd8 {[%emt 0:00:00]} 25. Nd2 Qd5 {[%emt 0:00:00]} 26. Nb3 {[%emt 0:00:00]} Rad8 {[%emt 0:00:00]} 27. f3 {[%emt 0:07:00]} f5 {[%emt 0:00:00]} 28. Bf2 {[%emt 0:00:00]} f4 {[%emt 0:00:00]} 29. Rfe1 Bb4 {[%emt 0:00:00]} 30. Red1 {[%emt 0:00:00]} Be7 {[%emt 0:00:00]} 31. Re1 Bb4 {[%emt 0:00:00]} 32. Red1 Be7 {[%emt 0:00:00]} 33. Re1 {[%emt 0:03:00]} Bb4 {[%emt 0:00:00]} 34. Red1 Be7 {[%emt 0:00:00]} 35. a3 {[%emt 0:00:00]} a5 {[%emt 0:00:00]} 36. Qe4 {[%emt 0:00:00]} Qxe4 {[%emt 0:00:00]} 37. dxe4 {[%emt 0:00:00]} b6 {[%emt 0:00:00]} 38. c3 {[%emt 0:00:00]} Kh7 {[%emt 0:00:00]} 39. Nd2 {[%emt 0:00:00]} Rd7 {[%emt 0:00:00]} 40. Nb3 {[%emt 0:00:00]} Rdd8 {[%emt 0:00:00]} 41. Nd2 {[%emt 0:00:00]} Rd7 {[%emt 0:00:00]} 42. Kf1 {[%emt 0:00:00]} Rfd8 {[%emt 0:00:00]} 43. Ke2 {[%emt 0:00:00]} Bb4 {[%emt 0:00:00]} 44. Kf1 {[%emt 0:00:00]} Be7 {[%emt 0:00:00]} 45. Ke2 {[%emt 0:00:00]} Bb4 {[%emt 0:00:00]} 46. Kf1 {[%emt 0:00:00]} Be7 {[%emt 0:00:00]} 47. Ke2 {[%emt 0:00:00]} Rf8 {[%emt 0:00:00]} 48. Kf1 {[%emt 0:00:00]} Rfd8 {[%emt 0:00:00]} 49. Ke2 {[%emt 0:00:00]} Rf8 {[%emt 0:00:00]} 50. Kf1 {[%emt 0:00:00]} Rfd8 {[%emt 0:00:00]} 51. Ke2 {[%emt 0:00:00]} a4 {[%emt 0:00:00]} 52. Nf1 {[%emt 0:00:00]} Na5 {[%emt 0:00:00]} 53. Nd2 {[%emt 0:00:00]} Nc6 {[%emt 0:00:00]} 54. Nf1 {[%emt 0:00:00]} Na5 {[%emt 0:00:00]} 55. Rxd7 {[%emt 0:00:00]} Rxd7 {[%emt 0:00:00]} 56. Rd1 {[%emt 0:00:00]} Rxd1 {[%emt 0:00:00]} 57. Kxd1 {[%emt 0:00:00]} Nc4 {[%emt 0:00:00]} 58. Kc2 {[%emt 0:00:00]} Na5 {[%emt 0:00:00]} 59. Kd1 {[%emt 0:00:00]} Nc4 {[%emt 0:00:00]} 60. Kc2 {[%emt 0:00:00]} Na5 {[%emt 0:00:00]} 61. Kd1 {[%emt 0:00:00]} Nc4 {[%emt 0:00:00]} 62. Kc2 {[%emt 0:00:00]} Kg6 {[%emt 0:00:00]} 63. Nd2 {[%emt 0:00:00]} Nxd2 {[%emt 0:00:00]} 64. Kxd2 Kf6 {[%emt 0:00:00]} 65. Kd3 {[%emt 0:00:00]} b5 {[%emt 0:00:00]} 66. Be1 {[%emt 0:00:00]} Ke6 {[%emt 0:00:00]} 67. c4 {[%emt 0:00:00]} c6 {[%emt 0:00:00]} 68. cxb5 {[%emt 0:00:00]} cxb5 {[%emt 0:00:00]} 69. Ba5 {[%emt 0:00:00]} Kd7 {[%emt 0:00:00]} 70. Be1 {[%emt 0:00:00]} Ke6 {[%emt 0:00:00]} 71. Ba5 {[%emt 0:00:00]} Kd7 {[%emt 0:00:00]} 72. Bc3 {[%emt 0:00:00]} Ke6 {[%emt 0:00:00]} 73. Ba5 {[%emt 0:00:00]} Kd7 {[%emt 0:00:00]} 74. Bc3 {[%emt 0:00:00]} Bd6 {[%emt 0:00:00]} 75. Ba5 {[%emt 0:00:00]} g6 {[%emt 0:00:00]} 76. Kc3 {[%emt 0:00:00]} h5 {[%emt 0:00:00]} 77. Bb6 {[%emt 0:00:00]} Kc6 {[%emt 0:00:29]} 78. Ba5 {[%emt 0:00:00]} Bc5 {[%emt 0:00:19]} 79. Bb4 {[%emt 0:00:00]} Bd6 {[%emt 0:00:41]} 80. Ba5 {[%emt 0:00:00]} Bc5 {[%emt 0:00:19]} 81. Bb4 Bxb4+ {[%emt 0:01:33]} 82. Kxb4 {[%emt 0:00:00]} g5 {[%emt 0:00:10]} 83. Kc3 {[%emt 0:00:00]} Kc5 {[%emt 0:00:36]} 84. Kd3 {[%emt 0:00:00]} b4 {[%emt 0:00:34]} 85. axb4+ {[%emt 0:00:00]} Kxb4 {[%emt 0:00:11]} 86. Kc2 {[%emt 0:00:00]} Kc4 {[%emt 0:00:10]} 87. Kd2 {[%emt 0:00:00]} Kc5 {[%emt 0:01:09]} 88. Kd3 Kb4 {[%emt 0:00:11]} 89. Kc2 {[%emt 0:00:00]} Kc4 {[%emt 0:00:10]} 90. Kd2 {[%emt 0:00:00]} Kb3 {[%emt 0:00:49]} 91. Kc1 {[%emt 0:00:00]} Kb4 {[%emt 0:00:31]} 92. Kc2 {[%emt 0:00:00]} Kc4 {[%emt 0:00:10]} 93. Kd2 {[%emt 0:00:00]} Kb3 {[%emt 0:00:49]} 94. Kc1 {[%emt 0:00:00]} Kb4 {[%emt 0:04:04]} 95. Kb1 {[%emt 0:00:00]} Kc5 {[%emt 0:00:00]} 96. Kc2 {[%emt 0:00:00]} Kc4 {[%emt 0:00:00]} 97. Kd2 {[%emt 0:00:00]} Kb3 {[%emt 0:00:00]} 98. Kc1 {[%emt 0:00:00]} Kb4 {[%emt 0:02:00]} 99. Kb1 {[%emt 0:00:00]} Kb3 {[%emt 0:01:01]} 100. Kc1 {[%emt 0:00:00]} Kb4 {[%emt 0:00:00]} 101. Kc2 {[%emt 0:00:00]} Kc4 {[%emt 0:00:00]} 102. Kd2 {[%emt 0:00:00]} Kb3 {[%emt 0:00:00]} 103. Kc1 {[%emt 0:00:00]} Kb4 {[%emt 0:01:29]} 104. Kb1 {[%emt 0:00:00]} Kb3 {[%emt 0:01:01]} 105. Kc1 {[%emt 0:00:00]} a3 {[%emt 0:01:47]} 106. bxa3 {[%emt 0:00:00]} Kxa3 {[%emt 0:00:02]} 107. Kc2 {[%emt 0:00:00]} Kb4 {[%emt 0:00:10]} 108. Kb2 {[%emt 0:00:00]} Kc4 {[%emt 0:00:05]} 109. Kc2 {[%emt 0:00:00]} Kd4 {[%emt 0:00:05]} 110. Kc1 {[%emt 0:00:00]} Kc4 {[%emt 0:00:55]} 111. Kc2 {[%emt 0:00:00]} Kd4 {[%emt 0:00:05]} 112. Kd2 {[%emt 0:00:00]} Kc4 {[%emt 0:00:55]} 113. Kc2 {[%emt 0:00:00]} Kd4 {[%emt 0:00:05]} 114. Kd2 {[%emt 0:00:00]} Kc4 {[%emt 0:01:14]} 115. Kc2 {[%emt 0:00:00]} Kd4 {[%emt 0:01:40]} 116. Kd2 {[%emt 0:00:00]} h4 {[%emt 0:00:04]} 117. Ke2 {[%emt 0:00:00]} Kc3 {[%emt 0:00:23]} 118. Ke1 {[%emt 0:00:00]} Kd3 {[%emt 0:00:06]} 119. Kd1 {[%emt 0:00:00]} Kd4 {[%emt 0:01:01]} 120. Ke2 {[%emt 0:00:00]} Kc3 {[%emt 0:00:23]} 121. Ke1 {[%emt 0:00:00]} Kd3 {[%emt 0:00:06]} 122. Kd1 {[%emt 0:00:00]} Kd4 {[%emt 0:01:01]} 123. Ke2 {[%emt 0:00:00]} Kc3 {[%emt 0:00:23]} 124. Ke1 {[%emt 0:00:00]} Kd3 {[%emt 0:00:06]} 125. Kd1 {[%emt 0:00:00]} Kc3 {[%emt 0:00:45]} 126. Kc1 {[%emt 0:00:00]} Kd3 {[%emt 0:00:08]} 127. Kd1 {[%emt 0:00:00]} Ke3 {[%emt 0:00:09]} 128. Ke1 {[%emt 0:00:00]} Kd3 {[%emt 0:03:12]} 129. Kd1 {[%emt 0:00:00]} Kc3 {[%emt 0:00:05]} 130. Kc1 {[%emt 0:00:00]} Kd3 {[%emt 0:00:04]} 131. Kd1 {[%emt 0:00:00]} Ke3 {[%emt 0:00:05]} 132. Ke1 {[%emt 0:00:00]} Kd3 {[%emt 0:00:08]} 133. Kd1 {[%emt 0:00:00]} Ke3 {[%emt 0:00:03]} 134. Kc1 {[%emt 0:05:12]} Kd4 {[%emt 0:00:52]} 135. Kd2 {[%emt 0:00:00] Kc3+ Ke1 Kd3 Kd1 Kc3 Kc1 Kd3 Kd1 Ke3 Ke1 Kd3 Kd1 Kc3 Kc1 Kd3 Kd1 Ke3 Ke1 Kd3 Kd1 Ke3 Ke1 Kd3 Kd1 Ke3 Ke1 Kd3 Kd1 Ke3 Ke1 Kd3 Kd1 Kd4 Ke2 Kc3 Ke1 Kd3 Kd1 Kc3 Kc1 Kd3 Kd1 Ke3 Ke1 Kd3 Kd1 Kc3 Kc1 Kd3 Kd1 Ke3 Ke1 Kd3 Kd1 Ke3 Ke1 Kd3 Kd1 Ke3 Ke1 Kd3 Kd1 Ke3 Ke1 Kd3 Kd1 Kd4 Ke2 Kc3 Ke1 Kd3 Kd1 Kc3 Kc1 Kd3 Kd1 Ke3 Ke1 Kd3 Kd1 Kc3 Kc1 Kd3 Kd1 Ke3 Ke1 Kd3 Kd1 Ke3 Ke1 Kd3 Kd1 Ke3 Ke1 Kd3 Kd1 Ke3 Ke1 Kd3 Kd1 Ke3 Ke1 Kd3 Kd1 Ke3 Ke1 Kd3 Kd1 Ke3 Ke1 Kd3 Kd1 Ke3 Ke1 Kd3 Kd1 Ke3 Ke1 Kd3 Kd1 Ke3 Ke1 Kd3 Kd1} 1/2-1/2

[Event "FIDE WCCC Girls-10 2024"]
[Site "Montesilvano"]
[Date "2024.11.18"]
[Round "2.19"]
[White "Li, Grace"]
[Black "Mandukhai, Munkhbat"]
[Result "1-0"]
[ECO "C55"]
[WhiteElo "1529"]
[BlackElo "1645"]
[PlyCount "83"]
[EventDate "2024.11.18"]
[EventType "swiss"]
[EventCountry "ITA"]
[TimeControl "5400+30"]

1. e4 {[%emt 0:00:03]} e5 {[%emt 0:00:05]} 2. Nf3 {[%emt 0:00:08]} Nc6 {[%emt 0:00:05]} 3. Bc4 {[%emt 0:00:13]} Nf6 {[%emt 0:00:07]} 4. d3 {[%emt 0:00:14]} h6 {[%emt 0:00:06]} 5. Nc3 {[%emt 0:00:12]} d6 {[%emt 0:00:18]} 6. h3 {[%emt 0:00:30]} g6 {[%emt 0:00:18]} 7. Be3 {[%emt 0:00:56]} Bg7 {[%emt 0:00:27]} 8. Qd2 Na5 {[%emt 0:13:28]} 9. Bb3 Nxb3 {[%emt 0:01:07]} 10. axb3 Nd7 {[%emt 0:01:31]} 11. d4 {[%emt 0:09:53]} c6 {[%emt 1:18:28]} 12. d5 {[%emt 0:07:01]} c5 {[%emt 0:00:00]} 13. Nb5 {[%emt 1:17:50]} Nb6 {[%emt 0:00:00]} 14. Rxa7 {[%emt 0:00:00]} Rxa7 {[%emt 0:00:00]} 15. Nxa7 {[%emt 0:00:00]} f5 {[%emt 0:02:00]} 16. exf5 {[%emt 0:00:00]} gxf5 17. Qe2 Bd7 18. Nb5 Qf6 19. c3 O-O 20. O-O e4 21. Nd2 Qg6 22. Bf4 Nxd5 23. Qc4 Be6 24. Bxd6 Nf4 25. Bxf4 Bxc4 26. Nxc4 Rd8 27. Ra1 Qc6 28. Nbd6 b5 {[%emt 0:00:00]} 29. Nxf5 {[%emt 0:08:00]} Qf6 30. Nce3 b4 31. Ra7 Bf8 32. g4 Qc6 33. Bxh6 Qb6 34. Ra4 Bxh6 35. Nxh6+ Qxh6 36. Kg2 Qf6 37. Nf5 bxc3 38. bxc3 {[%emt 0:00:00]} Re8 {[%emt 0:10:36]} 39. Rc4 {[%emt 0:05:00]} Qc6 40. Kf1 Qd5 41. Ne3 Rf8 42. Nxd5 {[%emt 0:00:00]} 1-0

[Event "FIDE WCCC Girls-10 2024"]
[Site "Montesilvano"]
[Date "2024.11.18"]
[Round "2.23"]
[White "Tselmuun, Ider"]
[Black "Pham, Nhu Y"]
[Result "1-0"]
[ECO "E08"]
[WhiteElo "1846"]
[BlackElo "1914"]
[PlyCount "111"]
[EventDate "2024.11.18"]
[EventType "swiss"]
[EventCountry "ITA"]
[TimeControl "5400+30"]

1. d4 {[%emt 0:00:09]} Nf6 {[%emt 0:00:21]} 2. c4 {[%emt 0:00:07]} e6 {[%emt 0:01:07]} 3. g3 {[%emt 0:00:05]} d5 {[%emt 0:01:22]} 4. Bg2 {[%emt 0:00:09]} Be7 {[%emt 0:01:50]} 5. Nf3 {[%emt 0:00:16]} O-O {[%emt 0:03:15]} 6. O-O {[%emt 0:00:12]} b6 {[%emt 0:06:16]} 7. cxd5 {[%emt 0:01:54]} exd5 {[%emt 0:00:09]} 8. Bf4 {[%emt 0:00:22]} Bb7 {[%emt 0:05:02]} 9. Ne5 {[%emt 0:01:45]} Nbd7 {[%emt 0:07:58]} 10. Qc2 {[%emt 0:12:57]} c5 {[%emt 0:04:23]} 11. dxc5 {[%emt 0:00:08]} bxc5 {[%emt 0:05:14]} 12. Nxd7 {[%emt 0:00:37]} Qxd7 {[%emt 0:00:46]} 13. Qb3 {[%emt 0:00:46]} Rfd8 {[%emt 0:02:11]} 14. Rd1 {[%emt 0:01:28]} Bc6 {[%emt 0:05:39]} 15. Qc2 {[%emt 0:04:19]} d4 {[%emt 0:07:53]} 16. e4 {[%emt 0:02:46]} Qe6 {[%emt 0:11:55]} 17. f3 {[%emt 0:06:31]} Rac8 {[%emt 0:06:42]} 18. g4 {[%emt 0:10:21]} c4 19. Bg3 {[%emt 0:25:49]} Bc5 {[%emt 0:19:00]} 20. Bf2 {[%emt 0:01:18]} d3 {[%emt 0:03:24]} 21. Qd2 {[%emt 0:01:07]} Bxf2+ {[%emt 0:01:57]} 22. Qxf2 {[%emt 0:00:09]} Ba4 {[%emt 0:00:19]} 23. Rd2 {[%emt 0:01:17]} Qb6 24. Nc3 {[%emt 0:04:09]} Bc2 {[%emt 0:02:28]} 25. Qxb6 {[%emt 0:00:21]} axb6 {[%emt 0:00:04]} 26. g5 {[%emt 0:00:13]} Nd7 {[%emt 0:02:10]} 27. Nd5 {[%emt 0:00:22]} Kf8 {[%emt 0:00:39]} 28. Bh3 {[%emt 0:00:19]} Rb8 {[%emt 0:00:33]} 29. Bxd7 {[%emt 0:01:33]} Rxd7 {[%emt 0:00:07]} 30. Ne3 {[%emt 0:00:28]} Ba4 {[%emt 0:01:05]} 31. Nxc4 {[%emt 0:00:16]} Bb5 {[%emt 0:00:44]} 32. Ne3 {[%emt 0:00:51]} Bc6 {[%emt 0:00:30]} 33. Rc1 {[%emt 0:00:13]} Rd6 {[%emt 0:00:31]} 34. h4 {[%emt 0:07:58]} g6 {[%emt 0:00:54]} 35. Nc4 {[%emt 0:00:40]} Rdd8 {[%emt 0:00:31]} 36. Ne5 {[%emt 0:00:16]} Be8 {[%emt 0:00:22]} 37. Rxd3 {[%emt 0:00:08]} Rxd3 {[%emt 0:00:05]} 38. Nxd3 {[%emt 0:00:05]} Rd8 {[%emt 0:00:09]} 39. Rc3 {[%emt 0:00:23]} Bb5 {[%emt 0:00:14]} 40. Nf2 {[%emt 0:01:36]} Rd6 {[%emt 0:01:13]} 41. Rc8+ {[%emt 0:00:14]} Ke7 {[%emt 0:00:21]} 42. Rc2 {[%emt 0:01:07]} Bd7 {[%emt 0:01:09]} 43. Kg2 {[%emt 0:00:22]} f6 {[%emt 0:00:37]} 44. gxf6+ {[%emt 0:00:27]} Rxf6 {[%emt 0:00:17]} 45. Kg3 {[%emt 0:00:29]} h5 {[%emt 0:00:49]} 46. Nd3 {[%emt 0:00:09]} Rc6 {[%emt 0:00:17]} 47. Rxc6 {[%emt 0:01:53]} Bxc6 {[%emt 0:00:05]} 48. Nb4 {[%emt 0:00:03]} Be8 {[%emt 0:01:03]} 49. Nd5+ {[%emt 0:00:06]} Kd6 {[%emt 0:00:10]} 50. Nxb6 {[%emt 0:00:40]} Kc5 {[%emt 0:00:15]} 51. Nd5 {[%emt 0:00:03]} Bf7 {[%emt 0:00:42]} 52. a4 {[%emt 0:00:14]} Be8 {[%emt 0:00:18]} 53. b4+ {[%emt 0:02:32]} Kd6 {[%emt 0:00:22]} 54. a5 {[%emt 0:00:07]} Bb5 {[%emt 0:00:23]} 55. Nc3 {[%emt 0:00:16]} Bc4 {[%emt 0:00:16]} 56. b5 {[%emt 0:13:35] Kd5} 1-0

[Event "FIDE WCCC Girls-10 2024"]
[Site "Montesilvano"]
[Date "2024.11.18"]
[Round "2.24"]
[White "Aragonda, Sahasra"]
[Black "Bjerregaard Hagen, Frida"]
[Result "0-1"]
[ECO "C04"]
[WhiteElo "1526"]
[BlackElo "1815"]
[PlyCount "121"]
[EventDate "2024.11.18"]
[EventType "swiss"]
[EventCountry "ITA"]
[TimeControl "5400+30"]

1. e4 {[%emt 0:00:06]} e6 {[%emt 0:00:15]} 2. d4 {[%emt 0:00:05]} d5 {[%emt 0:00:08]} 3. Nd2 {[%emt 0:00:34]} Nc6 {[%emt 0:00:42]} 4. c3 {[%emt 0:01:38]} e5 {[%emt 0:02:36]} 5. Bb5 {[%emt 0:13:19]} exd4 {[%emt 0:11:07]} 6. cxd4 {[%emt 0:03:24]} dxe4 {[%emt 0:03:27]} 7. Nxe4 {[%emt 0:01:25]} Bb4+ {[%emt 0:05:52]} 8. Nc3 {[%emt 0:06:11]} Bd7 {[%emt 0:06:01]} 9. Nf3 {[%emt 0:09:46]} Nf6 {[%emt 0:02:39]} 10. O-O {[%emt 0:06:14]} O-O {[%emt 0:02:12]} 11. Bg5 {[%emt 0:03:35]} h6 {[%emt 0:02:59]} 12. Bh4 {[%emt 0:06:44]} a6 {[%emt 0:04:12]} 13. Bd3 {[%emt 0:05:27]} Bg4 {[%emt 0:03:26]} 14. Be2 {[%emt 0:11:22]} Qd6 {[%emt 0:09:09]} 15. Bg3 {[%emt 0:02:01]} Qd8 {[%emt 0:06:08]} 16. d5 {[%emt 0:04:47]} Ne7 {[%emt 0:03:30]} 17. Qd4 {[%emt 0:04:25]} Bd6 {[%emt 0:05:04]} 18. Bxd6 {[%emt 0:00:25]} Qxd6 {[%emt 0:00:25]} 19. Rad1 {[%emt 0:01:36]} Rad8 {[%emt 0:02:30]} 20. Ne4 {[%emt 0:01:00]} Nxe4 {[%emt 0:01:52]} 21. Qxe4 {[%emt 0:00:14]} Bf5 {[%emt 0:01:05]} 22. Qh4 {[%emt 0:01:51]} Ng6 {[%emt 0:01:32]} 23. Qd4 {[%emt 0:01:12]} Rd7 {[%emt 0:01:40]} 24. Rd2 {[%emt 0:01:07]} Qf4 {[%emt 0:04:09]} 25. Qxf4 {[%emt 0:00:46]} Nxf4 {[%emt 0:00:07]} 26. Bc4 {[%emt 0:00:50]} Rfd8 {[%emt 0:01:27]} 27. Rfd1 {[%emt 0:00:18]} Be4 {[%emt 0:00:58]} 28. Ne5 {[%emt 0:01:30]} Re7 {[%emt 0:01:36]} 29. Ng4 {[%emt 0:00:50]} Bxg2 {[%emt 0:02:14]} 30. Rd4 {[%emt 0:01:31]} Bf3 {[%emt 0:00:45]} 31. Rc1 {[%emt 0:01:30]} Bxg4 {[%emt 0:01:21]} 32. Rxf4 {[%emt 0:00:15]} Bh5 {[%emt 0:00:14]} 33. Rh4 {[%emt 0:02:08]} Bg6 {[%emt 0:00:15]} 34. Rf1 {[%emt 0:00:39]} Rde8 {[%emt 0:00:20]} 35. Rg4 {[%emt 0:01:27]} Re1 {[%emt 0:00:41]} 36. Rd4 {[%emt 0:00:50]} Rxf1+ {[%emt 0:00:32]} 37. Kxf1 {[%emt 0:00:08]} Re4 {[%emt 0:00:13]} 38. Rxe4 {[%emt 0:00:15]} Bxe4 {[%emt 0:00:14]} 39. Ke2 {[%emt 0:00:06]} Kf8 {[%emt 0:00:49]} 40. Ke3 {[%emt 0:00:16]} Bg6 {[%emt 0:00:22]} 41. a3 {[%emt 0:00:22]} Ke7 {[%emt 0:00:13]} 42. Kd4 {[%emt 0:00:32]} Kd6 {[%emt 0:00:20]} 43. b4 {[%emt 0:00:24]} f6 {[%emt 0:00:35]} 44. f4 {[%emt 0:00:39]} Bf5 {[%emt 0:01:07]} 45. Ke3 {[%emt 0:01:04]} g5 {[%emt 0:00:41]} 46. Kf3 {[%emt 0:00:40]} h5 {[%emt 0:00:29]} 47. Bb3 {[%emt 0:00:52]} h4 {[%emt 0:00:48]} 48. fxg5 {[%emt 0:00:36]} fxg5 {[%emt 0:00:20]} 49. Bc4 {[%emt 0:00:36]} Ke5 {[%emt 0:00:16]} 50. Bb3 {[%emt 0:00:48]} g4+ {[%emt 0:00:19]} 51. Kg2 {[%emt 0:00:30]} Be4+ {[%emt 0:00:46]} 52. Kf2 {[%emt 0:00:17]} Bxd5 {[%emt 0:00:16]} 53. Bd1 {[%emt 0:00:16]} Kf4 {[%emt 0:00:22]} 54. Be2 {[%emt 0:00:17]} Bf3 {[%emt 0:01:34]} 55. Bd3 {[%emt 0:00:22]} g3+ {[%emt 0:00:37]} 56. hxg3+ {[%emt 0:00:10]} hxg3+ {[%emt 0:00:05]} 57. Kg1 {[%emt 0:00:08]} Ke3 {[%emt 0:00:30]} 58. Bc4 {[%emt 0:00:24]} Kd4 {[%emt 0:00:48]} 59. Be6 {[%emt 0:00:45]} Kc3 {[%emt 0:00:30]} 60. Bc8 {[%emt 0:00:09]} Kb3 {[%emt 0:00:20]} 61. Kf1 {[%emt 0:09:22]} 0-1